bitfinex-derivatives/quotes_ETHF0:USTF0_20250308
["timestamp","ask_amount","ask_price","bid_price","bid_amount"]
[1741401089232,19.14,2135.1,2134.3,3.2078]
[1741401089438,2.215,2134.8,2134.5,0.93723]
[1741401089633,0.93704,2135.0,2134.6,0.93718]
[1741401089834,2.8577,2135.1,2134.6,4.14498]
[1741401090140,0.93714,2134.8,2134.6,3.2078]
[1741401090335,0.93714,2134.8,2134.4,0.93726]
[1741401090638,2.8577,2135.1,2134.5,0.93724]
[1741401090839,0.9371,2134.9,2134.5,0.93724]
[1741401091031,2.8577,2135.1,2134.3,3.2078]
[1741401091231,0.93709,2134.9,2134.5,0.93724]
[1741401091436,0.6427,2135.1,2134.3,3.2078]
[1741401091633,2.214,2135.3,2134.9,3.2078]
[1741401091838,0.93697,2135.2,2134.9,3.2078]
[1741401092040,2.214,2135.3,2134.9,3.8394]
[1741401092343,0.93698,2135.2,2134.9,3.8394]
[1741401092540,2.214,2135.3,2134.9,4.77647]
[1741401092741,0.93695,2135.2,2134.9,3.8394]
[1741401092940,0.93695,2135.2,2134.9,0.6316]
[1741401093142,0.93687,2135.4,2135.0,0.93699]
[1741401093434,0.93687,2135.4,2135.0,0.93701]
[1741401093643,0.93687,2135.4,2135.0,0.937]
[1741401094035,0.93691,2135.3,2134.9,4.77645]
[1741401094237,0.93696,2135.2,2134.9,3.8394]
[1741401094439,0.93692,2135.3,2134.9,4.77647]
[1741401094749,0.93692,2135.3,2134.9,3.8394]
[1741401095244,0.93694,2135.2,2134.9,4.77647]
[1741401095643,0.93694,2135.2,2134.9,3.8394]
[1741401096345,0.93694,2135.2,2134.9,4.77647]
[1741401096737,0.93703,2135.0,2134.9,3.2078]
[1741401097343,3.7762,2135.1,2134.9,3.2078]
[1741401097545,5.54985,2135.5,2134.9,3.2078]
[1741401097546,5.4208,2135.5,2134.9,3.2078]
[1741401097839,3.2078,2135.5,2134.9,4.14485]
[1741401098032,3.2078,2135.5,2134.9,3.2078]
[1741401098033,0.93699,2135.1,2134.9,3.2078]
[1741401098439,0.93703,2135.0,2134.9,3.2078]
[1741401098940,0.93701,2135.1,2134.9,3.2078]
[1741401099337,3.2078,2135.5,2134.9,3.2078]
[1741401099644,0.93697,2135.2,2134.9,4.14486]
[1741401100246,3.2078,2135.5,2134.9,4.14486]
[1741401100444,0.93698,2135.1,2134.9,3.2078]
[1741401100745,0.93699,2135.1,2134.9,4.14487]
[1741401100944,0.93696,2135.2,2134.9,4.14487]
[1741401101448,0.93698,2135.1,2134.9,3.2078]
[1741401102142,0.93703,2135.0,2134.9,3.2078]
[1741401102835,0.937,2135.1,2134.9,3.2078]
[1741401103247,3.2078,2135.5,2134.9,3.2078]
[1741401103449,0.93703,2135.0,2134.9,3.2078]
[1741401103745,3.2078,2135.5,2134.9,3.2078]
[1741401103948,0.937,2135.1,2134.9,3.2078]
[1741401104144,0.937,2135.1,2134.8,1.58619]
[1741401104341,0.937,2135.1,2134.9,0.93706]
[1741401104545,3.2078,2135.5,2135.0,0.93701]
[1741401104546,0.93693,2135.3,2135.0,0.93701]
[1741401104745,3.2078,2135.5,2135.0,0.6703]
[1741401104948,0.93686,2135.4,2135.2,0.93693]
[1741401105243,3.2078,2135.5,2135.0,0.6703]
[1741401105450,0.93687,2135.4,2135.1,0.93696]
[1741401105649,3.2078,2135.5,2135.0,0.6703]
[1741401105850,3.2078,2135.5,2135.3,0.93687]
[1741401106047,3.2078,2135.5,2135.4,0.6446]
[1741401106249,2.212,2135.6,2135.4,1.2956]
[1741401106451,2.983,2136.0,2135.4,1.2956]
[1741401106651,0.6407,2136.1,2135.8,3.2078]
[1741401106849,5.907,2136.6,2135.9,3.2078]
[1741401107145,0.6407,2136.5,2136.2,3.2078]
[1741401107351,1.57708,2136.5,2136.0,1.2956]
[1741401107546,0.6407,2136.5,2136.1,0.93651]
[1741401107743,0.93647,2136.3,2136.0,1.2956]
[1741401107943,0.93654,2136.1,2136.0,1.2956]
[1741401108148,2.212,2136.2,2135.6,3.2078]
[1741401108354,0.93672,2135.7,2135.6,3.2078]
[1741401108548,0.93676,2135.6,2135.5,0.00702922]
[1741401109748,2.211,2135.8,2135.5,0.00702922]
[1741401109943,0.93676,2135.6,2135.5,0.00702922]
[1741401110144,0.93674,2135.7,2135.5,0.00702922]
[1741401111542,2.211,2135.8,2135.5,0.00702922]
[1741401111749,2.211,2135.8,2135.6,3.2078]
[1741401112141,0.93672,2135.7,2135.6,3.2078]
[1741401112345,0.93676,2135.6,2135.5,0.00702922]
[1741401112948,4.14456,2135.6,2135.5,0.00702922]
[1741401113350,0.93676,2135.6,2135.5,0.00702922]
[1741401113546,4.14456,2135.6,2135.5,0.00702922]
[1741401113748,0.93676,2135.6,2135.5,0.00702922]
[1741401114461,4.14456,2135.6,2135.5,0.00702922]
[1741401115062,4.14456,2135.6,2135.0,3.2078]
[1741401115063,5.54976,2135.6,2135.0,3.2078]
[1741401115262,0.93688,2135.4,2135.1,0.93696]
[1741401116158,0.93692,2135.3,2135.0,4.15183922]
[1741401116766,2.86542922,2135.5,2135.0,3.21482922]
[1741401117262,0.93698,2135.1,2135.0,3.21482922]
[1741401117561,2.86542922,2135.5,2135.0,3.21482922]
[1741401117770,0.93691,2135.3,2135.0,3.21482922]
[1741401118060,0.93698,2135.1,2135.0,3.21482922]
[1741401119065,0.93698,2135.1,2135.0,0.00702922]
[1741401120861,0.9372,2134.6,2134.5,3.2078]
[1741401121058,0.93724,2134.5,2134.4,0.6285]
[1741401121262,0.93722,2134.6,2134.4,0.6285]
[1741401121470,2.98847,2135.0,2134.4,0.6285]
[1741401121471,0.93724,2134.5,2134.4,0.6285]
[1741401122563,0.93722,2134.6,2134.4,0.6285]
[1741401122969,3.2078,2134.9,2134.4,0.6285]
[1741401123169,0.93724,2134.5,2134.4,0.6285]
[1741401123769,0.93729,2134.4,2134.3,1.3216]
[1741401123974,2.211,2134.7,2134.2,3.21482922]
[1741401123975,0.93733,2134.3,2134.2,3.21482922]
[1741401124473,0.93733,2134.3,2134.2,0.00702922]
[1741401126374,0.93731,2134.4,2134.2,0.00702922]
[1741401126976,0.93733,2134.3,2134.2,0.00702922]
[1741401127177,0.6193,2134.5,2134.2,0.00702922]
[1741401127578,3.2078,2134.6,2134.2,0.02702922]
[1741401127973,0.6091,2134.6,2134.2,0.00702922]
[1741401128279,1.54633,2134.6,2134.3,0.93733]
[1741401128574,3.14817,2134.7,2134.4,4.14506]
[1741401128782,0.9372,2134.6,2134.5,1.9376]
[1741401129477,0.9372,2134.6,2134.5,0.6591]
[1741401129677,0.93733,2134.3,2134.2,0.00702922]
[1741401130070,2.211,2134.7,2134.2,0.00702922]
[1741401130269,2.211,2134.7,2134.5,0.93724]
[1741401130470,0.93716,2134.7,2134.6,0.6624]
[1741401130871,0.93724,2134.5,2134.4,3.2078]
[1741401131079,0.93723,2134.6,2134.3,0.93731]
[1741401131277,5.19685,2134.9,2134.2,0.94437922]
[1741401131476,0.9373,2134.4,2134.2,0.94437922]
[1741401131672,0.93727,2134.5,2134.3,0.93733]
[1741401131879,0.93723,2134.6,2134.4,0.93728]
[1741401132274,2.983,2135.2,2134.7,0.93714]
[1741401132475,3.14801,2135.1,2134.8,1.967]
[1741401132674,3.14801,2135.1,2134.9,0.93705]
[1741401132983,0.93703,2135.0,2134.8,2.90408]
[1741401133174,0.93707,2134.9,2134.8,1.967]
[1741401133376,0.93706,2135.0,2134.7,0.93713]
[1741401134576,0.93703,2135.0,2134.7,0.93713]
[1741401134979,0.93701,2135.1,2134.8,4.14491]
[1741401135172,3.14791,2135.3,2134.8,3.2178]
[1741401135480,0.937,2135.1,2134.8,4.15489]
[1741401135677,0.93687,2135.4,2135.1,0.93696]
[1741401135876,0.00702922,2135.5,2135.1,3.2078]
[1741401136077,0.00702922,2135.5,2135.4,0.93685]
[1741401136681,3.2078,2136.1,2135.6,0.93674]
[1741401136883,0.93661,2136.0,2135.7,0.93672]
[1741401137181,0.93667,2135.8,2135.7,3.2078]
[1741401137686,0.93665,2135.9,2135.7,3.2078]
[1741401137884,2.21,2135.8,2135.2,2.8933]
[1741401138187,3.14672,2135.7,2135.6,0.00702922]
[1741401138386,3.79222,2135.7,2135.6,0.00702922]
[1741401140191,1.58222,2135.7,2135.6,0.00702922]
[1741401140483,0.9367,2135.8,2135.6,0.00702922]
[1741401140681,0.00702922,2136.0,2135.6,3.21482922]
[1741401140882,0.00702922,2136.0,2135.7,1.9096]
[1741401141090,0.00702922,2136.0,2135.8,0.93666]
[1741401141383,0.00702922,2136.0,2135.7,1.9096]
[1741401141688,0.93672,2135.7,2135.6,3.21482922]
[1741401141890,3.14672,2135.7,2135.6,3.21482922]
[1741401142384,6.35452,2135.7,2135.6,0.00702922]
[1741401142587,10.35452,2135.7,2135.6,0.00702922]
[1741401142789,0.93689,2135.3,2135.2,1.2791]
[1741401143282,0.6492,2135.6,2135.2,2.216]
[1741401143583,0.93678,2135.6,2135.3,0.93689]
[1741401143792,3.6322,2135.9,2135.6,0.93676]
[1741401143990,2.21,2135.8,2135.6,3.2078]
[1741401144287,2.21,2135.8,2135.7,1.57042]
[1741401144588,2.21,2135.8,2135.7,0.6337]
[1741401144787,0.00702922,2136.0,2135.7,1.2878]
[1741401144977,0.94361922,2136.0,2135.8,0.6505]
[1741401145287,0.00702922,2136.0,2135.8,1.58716]
[1741401145686,0.00702922,2136.0,2135.8,0.6505]
[1741401145881,0.00702922,2136.0,2135.9,3.2078]
[1741401146280,0.00702922,2136.0,2135.9,4.14443]
[1741401146782,1.60197,2136.3,2136.0,0.93657]
[1741401146783,0.93648,2136.3,2136.0,0.93657]
[1741401146986,0.93651,2136.2,2135.9,4.14441]
[1741401147181,0.93659,2136.0,2135.9,3.2078]
[1741401147387,0.93658,2136.1,2135.9,3.2078]
[1741401147687,0.93652,2136.2,2135.9,3.2078]
[1741401147991,0.93652,2136.2,2135.9,4.14441]
[1741401148182,0.93656,2136.1,2135.9,3.2078]
[1741401148383,0.93659,2136.0,2135.9,3.2078]
[1741401148579,0.93657,2136.1,2135.9,3.2078]
[1741401148783,0.00702922,2136.3,2135.9,3.2078]
[1741401148982,0.93659,2136.1,2135.9,3.2078]
[1741401149484,0.00702922,2136.3,2135.9,3.2078]
[1741401149889,0.93659,2136.0,2135.9,3.2078]
[1741401150484,2.209,2136.1,2135.3,3.2078]
[1741401150684,0.93678,2135.6,2135.4,0.93685]
[1741401151692,1.54114,2135.9,2135.7,0.93672]
[1741401151987,0.9366,2136.0,2135.8,0.93665]
[1741401152188,2.209,2136.1,2135.6,3.2078]
[1741401152391,3.14556,2136.1,2135.9,0.93662]
[1741401152990,0.93661,2136.0,2135.6,3.2078]
[1741401153183,0.93669,2135.8,2135.6,3.2378]
[1741401153482,2.209,2136.1,2135.6,3.2078]
[1741401153685,0.93665,2135.9,2135.6,4.14453]
[1741401154488,0.93665,2135.9,2135.6,3.2078]
[1741401154690,2.209,2136.1,2135.7,0.6571]
[1741401154988,2.209,2136.1,2135.8,1.2605]
[1741401154989,0.93661,2136.0,2135.8,1.2605]
[1741401155295,3.14558,2136.1,2135.8,2.19716]
[1741401155785,2.209,2136.1,2135.9,0.93661]
[1741401156783,2.209,2136.1,2135.8,1.2605]
[1741401156983,0.00702922,2136.3,2135.8,1.2605]
[1741401157293,2.209,2136.6,2136.0,3.2078]
[1741401157493,2.209,2136.6,2136.4,0.93641]
[1741401157687,2.209,2136.6,2136.1,0.6577]
[1741401157891,2.209,2136.6,2136.3,0.93644]
[1741401157892,3.14535,2136.6,2136.3,0.93644]
[1741401158094,3.14535,2136.6,2136.1,0.6577]
[1741401158095,2.209,2136.6,2136.1,0.6577]
[1741401158287,2.209,2136.6,2136.1,0.68472922]
[1741401158288,0.93647,2136.3,2136.1,0.68472922]
[1741401158485,0.9365,2136.2,2136.1,0.66472922]
[1741401158787,0.93649,2136.3,2136.1,0.66472922]
[1741401159190,0.9365,2136.2,2136.1,0.66472922]
[1741401159897,3.1445,2136.2,2136.1,0.00702922]
[1741401160194,0.93674,2135.7,2135.4,6.13471]
[1741401160388,0.93669,2135.8,2135.4,5.1979]
[1741401160583,0.9368,2135.6,2135.4,5.1979]
[1741401160985,2.208,2135.8,2135.4,5.1979]
[1741401161190,0.93681,2135.5,2135.4,0.6697]
[1741401162297,5.4158,2135.8,2135.4,0.6697]
[1741401162792,0.93674,2135.7,2135.4,1.60652]
[1741401162995,2.208,2135.8,2135.5,0.6484]
[1741401163203,2.208,2135.8,2135.5,1.2586]
[1741401163408,2.208,2135.8,2135.6,0.93675]
[1741401164402,2.208,2136.0,2135.7,3.2078]
[1741401164610,2.208,2136.0,2135.8,0.93665]
[1741401164799,2.208,2136.0,2135.8,0.6675]
[1741401164998,2.208,2136.0,2135.9,0.93663]
[1741401165197,3.1446,2136.0,2135.8,0.6675]
[1741401165399,3.1446,2136.0,2135.9,0.93663]
[1741401165400,2.208,2136.0,2135.9,0.93663]
[1741401166505,0.93646,2136.3,2135.8,0.6675]
[1741401166697,0.93646,2136.3,2136.0,4.14437]
[1741401166894,3.15145922,2136.4,2136.1,0.6471]
[1741401167100,3.15145922,2136.4,2136.1,2.20893]
[1741401167295,3.15145922,2136.4,2136.2,0.6504]
[1741401167500,0.00702922,2136.4,2136.2,0.6504]
[1741401167799,3.21482922,2136.4,2135.7,3.2078]
[1741401167999,0.93667,2135.8,2135.7,3.2078]
[1741401170005,0.93672,2135.7,2135.6,0.6504]
[1741401171100,0.93681,2135.5,2135.4,3.21482922]
[1741401171299,0.93681,2135.5,2135.4,0.00702922]
[1741401174808,4.14461,2135.5,2135.4,0.00702922]
[1741401176403,5.4158,2135.5,2134.8,3.2078]
[1741401176708,0.6514,2135.4,2134.9,0.93705]
[1741401177113,0.93699,2135.1,2134.9,0.93705]
[1741401177610,0.6514,2135.4,2134.9,0.93705]
[1741401177811,0.94399922,2135.2,2134.9,0.93705]
[1741401178003,0.00702922,2135.2,2134.9,0.93705]
[1741401178215,0.93699,2135.1,2134.9,0.93705]
[1741401178502,0.93707,2134.9,2134.8,0.00702922]
[1741401178701,3.2078,2134.9,2134.1,3.8137]
[1741401178909,0.93733,2134.3,2134.2,0.6574]
[1741401179101,0.93731,2134.4,2134.2,0.6574]
[1741401180417,0.93733,2134.3,2134.2,0.6574]
[1741401180806,0.93738,2134.2,2134.1,3.21482922]
[1741401181012,0.93738,2134.2,2134.1,0.00702922]
[1741401185215,0.9376,2133.7,2133.6,1.2302]
[1741401185408,2.209,2133.9,2133.6,1.2302]
[1741401185616,0.9376,2133.7,2133.6,1.2302]
[1741401185914,2.209,2133.9,2133.6,2.25782]
[1741401185915,3.14652,2133.9,2133.6,2.25782]
[1741401186216,3.15354922,2133.9,2133.7,0.93758]
[1741401186516,2.21602922,2133.9,2133.7,0.6065]
[1741401186714,2.21602922,2133.9,2133.7,1.54408]
[1741401186910,2.21602922,2133.9,2133.8,3.2078]
[1741401187104,0.00702922,2133.9,2133.8,3.2078]
[1741401187307,0.94455922,2133.9,2133.7,0.6065]
[1741401187918,0.93755,2133.8,2133.7,0.6065]
[1741401189519,0.94455922,2133.9,2133.7,0.6065]
[1741401189713,0.00702922,2133.9,2133.8,4.14535]
[1741401193324,2.209,2134.3,2133.8,3.2278]
[1741401193636,0.93728,2134.5,2134.2,0.93738]
[1741401193957,2.209,2134.4,2134.3,0.6335]
[1741401194133,3.2078,2134.7,2134.3,0.6335]
[1741401194326,2.209,2134.6,2134.3,0.6335]
[1741401194525,2.209,2134.5,2134.4,0.93727]
[1741401194827,2.209,2134.5,2134.3,1.57079]
[1741401195324,2.209,2134.5,2134.4,0.93729]
[1741401195527,2.209,2134.5,2134.4,4.14509]
[1741401195721,2.209,2134.5,2134.3,0.6335]
[1741401195722,0.93729,2134.4,2134.3,0.6335]
[1741401196324,2.209,2134.5,2134.1,3.2078]
[1741401196520,0.9373,2134.4,2134.1,4.14519]
[1741401196718,2.209,2134.5,2134.4,0.93729]
[1741401197019,0.00702922,2134.7,2134.6,0.9372]
[1741401197621,0.93702,2135.1,2134.6,0.9372]
[1741401197622,2.209,2135.1,2135.0,0.93703]
[1741401199521,0.00702922,2135.3,2135.2,0.93694]
[1741401199720,0.00702922,2135.3,2135.2,3.2078]
[1741401200327,0.00702922,2135.3,2135.2,4.14474]
[1741401201930,0.00702922,2135.3,2135.2,4.22474]
[1741401202628,3.14475,2135.7,2135.2,4.22474]
[1741401202629,2.208,2135.7,2135.4,0.93682]
[1741401202825,2.208,2135.7,2135.5,0.6066]
[1741401203025,2.208,2135.7,2135.5,4.75118]
[1741401203331,3.8393,2136.1,2135.5,4.75118]
[1741401203629,2.208,2136.0,2135.5,4.75118]
[1741401203829,0.93665,2135.9,2135.6,0.93674]
[1741401204029,2.208,2135.8,2135.6,0.93674]
[1741401204928,2.208,2135.8,2135.7,0.93672]
[1741401205122,0.00702922,2136.0,2135.7,0.93672]
[1741401205933,0.94361922,2136.0,2135.7,0.93672]
[1741401206133,0.00702922,2136.0,2135.7,0.93672]
[1741401206836,0.00702922,2136.0,2135.6,1.2898]
[1741401207135,0.00702922,2136.0,2135.9,0.93663]
[1741401207339,0.00702922,2136.0,2135.8,4.14446]
[1741401207635,0.00702922,2136.0,2135.8,3.2078]
[1741401207836,0.93663,2135.9,2135.8,3.2078]
[1741401208033,0.00702922,2136.0,2135.8,3.2078]
[1741401208034,0.94363922,2136.0,2135.8,3.2078]
[1741401208231,0.00702922,2136.0,2135.8,4.14445]
[1741401208633,0.00702922,2136.0,2135.9,0.93663]
[1741401208832,0.00702922,2136.0,2135.8,4.14445]
[1741401210132,0.00702922,2136.0,2135.8,3.2078]
[1741401210332,0.00702922,2136.0,2135.9,0.93663]
[1741401210728,0.00702922,2136.0,2135.8,4.14445]
[1741401210927,0.00702922,2136.0,2135.9,0.93663]
[1741401211737,3.2078,2136.5,2135.9,0.1]
[1741401212044,5.4148,2136.5,2136.1,3.2078]
[1741401212237,0.93643,2136.4,2136.2,0.6379]
[1741401212436,5.4148,2136.5,2136.2,1.57439]
[1741401212437,0.93638,2136.5,2136.2,1.57439]
[1741401213135,0.93644,2136.4,2136.2,0.6379]
[1741401213640,0.93643,2136.4,2136.2,0.6379]
[1741401214040,0.93639,2136.5,2136.2,1.57438]
[1741401214346,3.79395,2136.6,2136.3,0.93644]
[1741401214547,3.79395,2136.6,2136.4,0.93641]
[1741401214745,0.93637,2136.5,2136.2,0.6379]
[1741401215047,0.93633,2136.6,2136.3,0.93643]
[1741401215243,3.14333,2136.6,2136.3,0.93643]
[1741401216549,0.93624,2136.8,2136.5,0.93637]
[1741401216841,2.207,2136.8,2136.4,3.2078]
[1741401217046,3.14327,2136.8,2136.5,1.55145]
[1741401217246,0.93627,2136.8,2136.5,1.55145]
[1741401218737,0.625,2137.0,2136.5,0.6151]
[1741401218942,2.207,2136.9,2136.6,0.6182]
[1741401219142,0.93625,2136.8,2136.6,0.6182]
[1741401219347,2.207,2136.9,2136.4,3.2078]
[1741401219649,0.93637,2136.5,2136.4,3.2078]
[1741401220346,0.93644,2136.4,2136.2,1.2333]
[1741401220542,5.54841,2136.8,2136.2,1.2333]
[1741401220746,0.0215,2136.7,2136.2,1.2333]
[1741401221351,0.93646,2136.3,2136.2,1.2333]
[1741401221553,0.0215,2136.7,2136.2,1.2333]
[1741401221746,0.93631,2136.7,2136.4,3.2078]
[1741401221945,2.206,2136.8,2136.4,4.14418]
[1741401222251,0.93631,2136.7,2136.4,4.14418]
[1741401222452,2.206,2136.8,2136.4,3.2078]
[1741401222745,0.9365,2136.2,2136.1,0.00702922]
[1741401224551,6.34134,2136.2,2135.4,3.2078]
[1741401224853,0.93665,2135.9,2135.7,0.93669]
[1741401225052,3.6139,2136.3,2135.7,4.14449]
[1741401225053,3.14261,2136.0,2135.7,4.14449]
[1741401225253,0.93664,2135.9,2135.7,4.14449]
[1741401225452,2.206,2136.0,2135.7,3.2078]
[1741401225653,0.00702922,2136.0,2135.9,0.93662]
[1741401225853,0.00702922,2136.0,2135.9,1.2817]
[1741401226055,0.94361922,2136.0,2135.9,1.2817]
[1741401226255,0.00702922,2136.0,2135.9,1.2817]
[1741401227152,0.00702922,2136.0,2135.9,2.21833]
[1741401228358,0.00702922,2136.0,2135.9,1.2817]
[1741401228655,0.94361922,2136.0,2135.9,1.2817]
[1741401229155,0.94361922,2136.0,2135.9,0.6139]
[1741401229354,0.00702922,2136.0,2135.6,0.00702922]
[1741401229571,0.93669,2135.8,2135.6,0.00702922]
[1741401229756,0.93668,2135.8,2135.6,1.57627922]
[1741401230158,2.206,2135.9,2135.6,1.57627922]
[1741401230352,3.14266,2135.9,2135.6,1.57627922]
[1741401230546,0.93668,2135.8,2135.6,1.57627922]
[1741401231258,3.14267,2135.9,2135.6,1.57627922]
[1741401231459,0.93669,2135.8,2135.6,0.63952922]
[1741401232147,0.93669,2135.8,2135.6,1.25072922]
[1741401233160,3.14265,2135.9,2135.7,3.2078]
[1741401233355,0.00702922,2136.0,2135.7,3.2078]
[1741401233654,0.93664,2135.9,2135.7,4.1445]
[1741401234159,0.94363922,2136.0,2135.7,4.1445]
[1741401235159,0.94363922,2136.0,2135.7,4.14448]
[1741401235360,0.00702922,2136.0,2135.7,3.2078]
[1741401235557,0.93665,2135.9,2135.7,3.2078]
[1741401235953,0.93665,2135.9,2135.7,4.14451]
[1741401236151,0.93665,2135.9,2135.7,3.2078]
[1741401236352,0.93666,2135.9,2135.7,3.2078]
[1741401236848,0.94364922,2136.0,2135.7,4.14451]
[1741401238061,0.93665,2135.9,2135.7,3.2078]
[1741401238256,3.21482922,2136.0,2135.6,1.25072922]
[1741401238469,0.93672,2135.7,2135.6,1.25072922]
[1741401238947,0.93672,2135.7,2135.6,0.63952922]
[1741401239156,0.93672,2135.7,2135.6,0.00702922]
[1741401239355,0.93689,2135.3,2135.2,1.2835]
[1741401239657,2.34199,2135.6,2135.0,3.836]
[1741401239857,2.206,2135.5,2135.0,3.836]
[1741401240257,0.93696,2135.2,2135.0,3.836]
[1741401240463,3.14282,2135.5,2135.3,0.93689]
[1741401240769,3.14282,2135.5,2135.0,3.836]
[1741401240770,0.93686,2135.4,2135.2,0.93691]
[1741401240956,0.93686,2135.4,2135.3,0.6132]
[1741401241265,3.14283,2135.5,2135.3,0.6132]
[1741401241666,3.14283,2135.5,2135.4,0.6282]
[1741401242366,0.93696,2135.2,2135.0,4.14481]
[1741401242665,0.93692,2135.3,2135.1,0.93698]
[1741401242862,2.206,2135.5,2135.0,4.4791]
[1741401243263,2.206,2135.5,2135.3,4.14468]
[1741401243460,2.206,2135.5,2135.4,0.6165]
[1741401243762,2.206,2135.7,2135.4,0.6165]
[1741401243962,0.93681,2135.5,2135.4,1.2287]
[1741401245567,0.93667,2135.8,2135.5,0.93677]
[1741401245762,2.206,2135.7,2135.6,0.93673]
[1741401246269,2.206,2135.7,2135.5,1.56368]
[1741401246668,2.206,2135.7,2135.6,0.93676]
[1741401246870,2.206,2135.7,2135.6,4.14456]
[1741401247171,2.21302922,2136.0,2135.8,0.93666]
[1741401247470,3.14961922,2136.0,2135.9,0.6161]
[1741401248161,0.93663,2135.9,2135.6,4.14454]
[1741401248366,0.93672,2135.7,2135.4,0.6165]
[1741401248569,0.93672,2135.7,2135.4,1.58331]
[1741401248765,2.21302922,2136.0,2135.4,0.6465]
[1741401249072,3.14964922,2136.0,2135.8,0.93666]
[1741401249369,3.14961922,2136.0,2135.9,0.6316]
[1741401249764,0.94361922,2136.0,2135.9,0.6316]
[1741401250874,0.9367,2135.8,2135.6,4.14455]
[1741401251371,0.93667,2135.9,2135.7,0.93672]
[1741401251567,0.93667,2135.8,2135.6,4.14454]
[1741401252763,0.00702922,2136.0,2135.6,3.2078]
[1741401252970,0.93666,2135.9,2135.7,0.93672]
[1741401253273,0.00702922,2136.0,2135.6,3.2078]
[1741401253479,0.93667,2135.9,2135.6,4.14453]
[1741401253676,0.93668,2135.8,2135.6,4.14453]
[1741401254168,0.93672,2135.7,2135.6,3.2078]
[1741401254365,0.9368,2135.6,2135.4,0.6602]
[1741401254569,0.93675,2135.7,2135.4,0.6602]
[1741401254771,0.93665,2135.9,2135.7,0.93672]
[1741401254972,0.93664,2135.9,2135.7,0.93672]
[1741401255171,0.93664,2135.9,2135.8,0.6404]
[1741401256773,0.00702922,2136.0,2135.8,0.6404]
[1741401257171,0.94363922,2136.0,2135.8,0.6404]
[1741401257374,0.93663,2135.9,2135.8,0.6404]
[1741401257775,0.94364922,2136.0,2135.8,0.6404]
[1741401257970,0.94364922,2136.0,2135.7,0.9367]
[1741401257971,0.00702922,2136.0,2135.6,4.14454]
[1741401258167,0.93672,2135.7,2135.6,3.2078]
[1741401258372,0.00702922,2136.0,2135.6,3.2078]
[1741401258781,0.93672,2135.7,2135.6,3.2078]
[1741401258988,0.00702922,2136.0,2135.6,3.2078]
[1741401259167,3.20386695,2136.0,2135.6,3.2078]
[1741401259377,0.93665,2135.9,2135.7,0.9367]
[1741401259576,4.14048695,2136.0,2135.7,0.9367]
[1741401259771,4.14048695,2136.0,2135.8,0.6414]
[1741401259772,3.14964922,2136.0,2135.8,0.6414]
[1741401259975,0.93663,2135.9,2135.8,0.6414]
[1741401260382,0.93672,2135.7,2135.6,3.2078]
[1741401261174,0.93681,2135.5,2135.4,0.6508]
[1741401262077,2.205,2135.6,2135.4,0.6508]
[1741401262280,2.205,2135.6,2135.5,0.93681]
[1741401262480,2.205,2135.6,2135.4,0.6508]
[1741401262681,2.205,2135.6,2135.5,0.93681]
[1741401262984,0.6494,2135.8,2135.6,0.93676]
[1741401263184,0.00702922,2136.0,2135.7,3.2078]
[1741401263185,2.205,2135.9,2135.7,3.2078]
[1741401263387,0.00702922,2136.0,2135.9,0.93663]
[1741401264577,0.99085218,2136.4,2135.8,1.8964]
[1741401264781,3.76387,2136.5,2136.2,0.93647]
[1741401264976,3.76387,2136.5,2136.1,3.2078]
[1741401264977,0.6225,2136.5,2136.1,3.2078]
[1741401265182,0.6225,2136.5,2136.2,0.93646]
[1741401265385,0.6225,2136.5,2136.3,1.55574]
[1741401265685,1.5589,2136.5,2136.3,0.6193]
[1741401266398,0.93641,2136.4,2136.3,0.6193]
[1741401266589,0.93646,2136.3,2136.2,0.00702922]
[1741401267386,0.93643,2136.4,2136.2,0.00702922]
[1741401267584,1.55889,2136.5,2136.2,0.94351922]
[1741401267782,1.55889,2136.5,2136.2,1.59831922]
[1741401268285,0.6225,2136.5,2136.2,0.66182922]
[1741401268686,0.93643,2136.4,2136.2,0.66182922]
[1741401269195,0.93641,2136.4,2136.2,0.66182922]
[1741401270491,0.93643,2136.4,2136.2,0.66182922]
[1741401271192,0.6225,2136.5,2136.2,0.66182922]
[1741401271393,0.93646,2136.3,2136.2,0.66182922]
[1741401271693,0.6225,2136.5,2136.2,0.66182922]
[1741401271998,0.93646,2136.3,2136.2,0.66182922]
[1741401274891,0.6225,2136.5,2136.2,0.66182922]
[1741401275092,0.93646,2136.3,2136.2,0.66182922]
[1741401275303,0.6225,2136.5,2136.2,0.66182922]
[1741401275600,2.8275,2136.5,2136.2,0.66182922]
[1741401275790,2.8275,2136.5,2136.3,0.93645]
[1741401275991,2.8275,2136.5,2136.2,1.59831922]
[1741401276198,0.93643,2136.4,2136.2,0.66182922]
[1741401276398,0.93643,2136.4,2136.2,1.59832922]
[1741401276596,0.93646,2136.3,2136.2,0.66182922]
[1741401277493,0.93642,2136.4,2136.2,1.59831922]
[1741401277697,3.76388,2136.5,2136.3,0.93645]
[1741401277896,3.76389,2136.5,2136.3,0.93645]
[1741401278092,3.76389,2136.5,2136.2,1.59829922]
[1741401278400,3.76389,2136.5,2136.3,0.93644]
[1741401279099,0.93642,2136.4,2136.2,1.59829922]
[1741401279705,2.8275,2136.5,2136.2,1.59829922]
[1741401279901,0.93641,2136.4,2136.2,1.59829922]
[1741401284210,2.8275,2136.5,2136.2,0.66182922]
[1741401284510,0.93646,2136.3,2136.2,0.00702922]
[1741401285513,4.08569585,2136.4,2135.6,0.6064]